bitfinex-derivatives/quotes_SOLF0:USTF0_20241229
["timestamp","ask_amount","ask_price","bid_price","bid_amount"]
[1735455780908,3.0612,196.78,196.66,3.18]
[1735455781109,3.0612,196.78,196.68,12.45860607]
[1735455781308,2.5456,196.76,196.71,2.5462]
[1735455782407,2.5457,196.75,196.71,2.5462]
[1735455782611,2.5457,196.75,196.7,2.5463]
[1735455783209,3.0612,196.78,196.68,12.45860607]
[1735455783510,3.0612,196.78,196.68,15.63860607]
[1735455784010,2.5456,196.76,196.71,2.5461]
[1735455784809,2.5456,196.76,196.68,15.63860607]
[1735455785112,3.0612,196.78,196.75,2.5457]
[1735455785311,3.0612,196.78,196.71,12.45860607]
[1735455785507,3.0612,196.78,196.76,2.5455]
[1735455785913,3.0612,196.78,196.74,3.18]
[1735455786312,2.545,196.81,196.74,3.18]
[1735455786514,3.0037,196.84,196.74,15.63860607]
[1735455788011,2.5451,196.8,196.76,2.5455]
[1735455788611,3.0037,196.84,196.76,2.5455]
[1735455788807,2.5449,196.81,196.76,2.5455]
[1735455789015,3.0037,196.84,196.77,2.5453]
[1735455789415,2.5449,196.81,196.77,2.5453]
[1735455790012,3.0037,196.84,196.74,12.45860607]
[1735455790214,12.45860607,196.83,196.73,3.18]
[1735455790715,2.5456,196.77,196.73,3.18]
[1735455791417,2.5456,196.77,196.73,5.7259]
[1735455791617,2.5456,196.77,196.73,2.5459]
[1735455792414,0.06,196.76,196.73,2.5459]
[1735455793420,0.06,196.76,196.72,3.18]
[1735455793615,0.06,196.76,196.75,2.5457]
[1735455795817,0.06,196.76,196.73,2.5458]
[1735455796017,0.06,196.76,196.72,3.18]
[1735455796223,0.06,196.76,196.7,3.22]
[1735455796520,2.5458,196.75,196.7,5.7663]
[1735455796921,2.6056,196.76,196.72,2.5461]
[1735455797317,2.6056,196.76,196.7,3.22]
[1735455797517,2.6056,196.76,196.71,2.5462]
[1735455797720,2.5458,196.75,196.71,2.5462]
[1735455798217,0.06,196.76,196.73,2.5458]
[1735455798414,0.06,196.76,196.7,3.22]
[1735455798616,0.06,196.76,196.71,12.45860607]
[1735455799524,0.06,196.76,196.75,2.5457]
[1735455803422,0.06,196.76,196.74,2.5458]
[1735455804228,0.06,196.76,196.75,2.5457]
[1735455804526,0.06,196.76,196.72,3.22]
[1735455805824,0.06,196.76,196.75,2.5457]
[1735455809726,0.06,196.76,196.75,15.00430607]
[1735455810131,3.1427,196.88,196.75,12.45860607]
[1735455810434,2.5442,196.87,196.82,2.5447]
[1735455810630,3.1427,196.88,196.79,3.22]
[1735455810832,5.6867,196.88,196.79,3.22]
[1735455811430,5.6867,196.88,196.83,2.5446]
[1735455812429,3.1427,196.88,196.79,3.22]
[1735455813535,3.1427,196.88,196.84,2.5445]
[1735455813732,5.6867,196.88,196.84,2.5445]
[1735455814235,3.1427,196.88,196.8,2.5449]
[1735455814437,2.5444,196.85,196.8,2.5449]
[1735455814737,2.5444,196.85,196.79,3.22]
[1735455814941,2.5444,196.85,196.81,2.5449]
[1735455815145,3.1427,196.88,196.79,3.22]
[1735455816140,5.6868,196.88,196.83,2.5446]
[1735455816335,3.1427,196.88,196.83,2.5446]
[1735455816543,2.5443,196.87,196.83,2.5446]
[1735455816737,3.1427,196.88,196.81,2.5448]
[1735455816936,3.1427,196.88,196.79,3.22]
[1735455817539,5.6868,196.88,196.83,2.5446]
[1735455817742,5.6868,196.88,196.79,3.22]
[1735455817939,3.1427,196.88,196.79,3.22]
[1735455818238,2.5443,196.86,196.81,2.5448]
[1735455818437,3.1427,196.88,196.79,3.22]
[1735455820541,2.5441,196.87,196.83,2.5445]
[1735455821442,3.1427,196.88,196.79,3.22]
[1735455821939,12.45860607,196.94,196.79,3.22]
[1735455822142,2.5437,196.91,196.79,3.22]
[1735455822752,2.5435,196.92,196.81,12.45860607]
[1735455823443,12.45860607,196.94,196.81,12.45860607]
[1735455823644,2.5433,196.94,196.84,12.45860607]
[1735455823844,100.1927,197.0,196.87,12.45860607]
[1735455824044,100.1927,197.0,196.88,3.22]
[1735455824349,2.5429,196.97,196.88,3.22]
[1735455825148,2.543,196.96,196.91,2.5436]
[1735455825446,100.1927,197.0,196.88,3.22]
[1735455825748,100.1927,197.0,196.95,2.543]
[1735455825947,100.1927,197.0,196.9,12.45860607]
[1735455826141,100.1927,197.0,196.97,2.5427]
[1735455826449,100.1927,197.0,196.95,3.24]
[1735455826650,100.1927,197.0,196.96,12.45860607]
[1735455827152,100.1927,197.0,196.99,2.5426]
[1735455827445,100.0,197.0,196.99,2.5426]
[1735455827646,100.0,197.0,196.99,15.00120607]
[1735455828541,100.0,197.0,196.87,6.93217393]
[1735455828747,100.0,197.0,196.96,12.45860607]
[1735455828943,100.0,197.0,196.97,3.24]
[1735455829151,100.0,197.0,196.99,2.5426]
[1735455829553,100.0,197.0,196.99,15.00120607]
[1735455830551,5.8686489,197.0,196.99,15.00120607]
[1735455833551,2.12759899,197.04,197.01,2.5422]
[1735455833749,2.12759899,197.04,196.99,12.45860607]
[1735455834355,2.12759899,197.04,196.85,6.93217393]
[1735455834655,2.12759899,197.04,196.95,12.45860607]
[1735455834855,2.12759899,197.04,196.98,2.5427]
[1735455835051,2.12759899,197.04,196.95,15.69860607]
[1735455835250,2.12759899,197.04,196.98,12.45860607]
[1735455835451,2.12759899,197.04,196.99,2.5425]
[1735455836256,2.12759899,197.04,197.02,2.5422]
[1735455836557,2.12759899,197.04,196.98,12.45860607]
[1735455837459,2.12759899,197.04,197.0,2.5424]
[1735455840253,2.5422,197.02,197.0,7.92799797]
[1735455840456,2.12759899,197.04,197.0,7.92799797]
[1735455840863,2.12759899,197.04,197.0,10.47039797]
[1735455841062,2.12759899,197.04,197.0,7.92799797]
[1735455841459,2.12759899,197.04,197.02,7.92799797]
[1735455842361,2.12759899,197.04,197.01,7.92799797]
[1735455843463,2.12759899,197.04,197.02,2.5422]
[1735455844157,2.12759899,197.04,197.01,7.92799797]
[1735455844158,2.12759899,197.04,197.03,10.47009797]
[1735455844364,7.92799797,197.16,197.08,7.92799797]
[1735455844665,7.92799797,197.16,197.08,11.16799797]
[1735455845163,2.5407,197.14,197.1,2.5412]
[1735455845365,7.92799797,197.17,197.1,2.5412]
[1735455845554,1.5539,197.18,197.08,11.16799797]
[1735455845759,9.48189797,197.18,197.1,7.92799797]
[1735455846162,2.5405,197.15,197.11,2.541]
[1735455846362,3.0867,197.22,197.09,12.37091361]
[1735455846659,2.5399,197.2,197.15,2.5405]
[1735455846861,3.0867,197.22,197.12,12.37091361]
[1735455847067,0.22584,197.14,197.13,3.44]
[1735455847264,0.22584,197.14,197.13,5.9808]
[1735455848263,0.22584,197.14,197.13,3.44]
[1735455848961,0.22584,197.14,197.13,5.9808]
[1735455850663,2.81159484,197.28,197.13,3.44]
[1735455850868,2.5396,197.23,197.16,2.5403]
[1735455851168,2.81159484,197.28,197.16,2.5403]
[1735455851369,2.81159484,197.28,197.14,2.5406]
[1735455851965,2.5399,197.2,197.14,2.5406]
[1735455852269,2.5399,197.2,197.15,2.5405]
[1735455852866,2.5399,197.21,197.16,2.5403]
[1735455853070,2.81159484,197.28,197.16,2.5403]
[1735455853565,12.37091361,197.22,197.11,3.44]
[1735455853766,12.37091361,197.22,197.09,15.81091361]
[1735455854568,2.5406,197.15,197.1,2.5411]
[1735455855363,12.37091361,197.22,197.09,12.37091361]
[1735455855971,4.5366,197.21,197.09,12.37091361]
[1735455856167,4.5366,197.21,197.08,3.44]
[1735455856368,4.5366,197.21,197.06,12.37091361]
[1735455856672,4.5366,197.21,197.07,3.44]
[1735455856863,2.5408,197.14,197.09,2.5413]
[1735455857068,12.37091361,197.19,197.06,12.37091361]
[1735455857463,12.37091361,197.19,197.06,15.81091361]
[1735455857868,12.37091361,197.19,197.06,12.37091361]
[1735455858073,12.37091361,197.19,197.07,3.44]
[1735455858470,2.5406,197.15,197.1,2.5412]
[1735455859174,12.37091361,197.19,197.07,3.44]
[1735455859569,12.37091361,197.19,197.06,12.37091361]
[1735455859973,2.5409,197.12,197.08,2.5414]
[1735455861474,2.5407,197.14,197.1,2.5411]
[1735455861975,12.37091361,197.19,197.06,12.37091361]
[1735455862868,2.5405,197.16,197.08,2.5414]
[1735455863171,12.37091361,197.19,197.08,2.5414]
[1735455863576,2.5409,197.13,197.08,2.5414]
[1735455864074,12.37091361,197.19,197.08,2.5414]
[1735455864979,2.5409,197.13,197.08,2.5414]
[1735455865278,3.44,197.17,197.08,2.5414]
[1735455865478,3.0881,197.12,197.08,2.5414]
[1735455865874,3.0881,197.12,197.04,12.37091361]
[1735455865875,2.5412,197.1,197.04,12.37091361]
[1735455866075,3.0881,197.12,197.04,12.37091361]
[1735455868477,2.5411,197.11,197.07,10.46328359]
[1735455870278,3.0881,197.12,196.98,28.04705862]
[1735455870477,3.0881,197.12,197.06,7.92188359]
[1735455870980,11.00998359,197.12,197.04,10.46378359]
[1735455871478,2.5415,197.08,197.04,10.46378359]
[1735455872374,7.92188359,197.1,197.02,10.46408359]
[1735455873080,2.5415,197.08,197.02,10.46408359]
[1735455873283,7.92188359,197.1,197.02,10.46408359]
[1735455873981,2.5413,197.09,197.04,7.92188359]
[1735455874174,3.0881,197.12,197.06,7.92188359]
[1735455874578,5.6291,197.12,197.08,2.5414]
[1735455875479,3.0881,197.12,197.07,2.5415]
[1735455875783,3.0881,197.12,197.06,7.92188359]
[1735455876176,3.0881,197.12,197.08,2.5413]
[1735455876477,3.0881,197.12,197.08,7.92188359]
[1735455876683,1.5018,197.13,197.1,2.5412]
[1735455877176,2.5408,197.14,197.1,2.5412]
[1735455878482,1.57,197.17,197.09,7.92188359]
[1735455878678,2.5405,197.15,197.11,2.541]
[1735455879278,4.1104,197.17,197.12,2.5408]
[1735455879582,2.5404,197.17,197.13,7.92188359]
[1735455881185,2.5404,197.17,197.09,3.42]
[1735455881383,2.5404,197.17,197.11,7.92188359]
[1735455881683,1.5152,197.18,197.11,7.92188359]
[1735455882080,2.5403,197.17,197.13,2.5407]
[1735455882685,2.5401,197.19,197.15,2.5405]
[1735455883486,83.7630286,197.33,197.13,7.92188359]
[1735455883683,2.5399,197.21,197.16,2.5403]
[1735455883884,7.92188359,197.23,197.16,2.5403]
[1735455884687,2.54,197.2,197.16,2.5403]
[1735455885480,2.5399,197.21,197.17,2.5403]
[1735455885784,7.92188359,197.22,197.15,7.92188359]
[1735455886582,10.46158359,197.22,197.17,2.5402]
[1735455887481,2.5397,197.22,197.19,2.54]
[1735455889186,2.5401,197.19,197.14,10.46248359]
[1735455889586,7.92188359,197.21,197.14,10.46248359]
[1735455889782,2.54,197.19,197.14,10.46248359]
[1735455890484,7.92188359,197.21,197.1,3.42]
[1735455890685,7.92188359,197.26,197.17,7.92188359]
[1735455890884,4.5924,197.3,197.24,7.92188359]
[1735455891583,2.5388,197.29,197.24,7.92188359]
[1735455892388,5.5669,197.3,197.26,10.46098359]
[1735455892584,5.5669,197.3,197.26,7.92188359]
[1735455892790,3.0283,197.3,197.18,4.4116]
[1735455892989,2.5389,197.28,197.25,7.92188359]
[1735455893384,3.0283,197.3,197.25,7.92188359]
[1735455893790,2.539,197.27,197.25,7.92188359]
[1735455894484,2.5393,197.25,197.23,7.92188359]
[1735455895591,2.5389,197.28,197.23,7.92188359]
[1735455895987,3.0283,197.3,197.23,7.92188359]
[1735455896294,10.95018359,197.3,197.23,7.92188359]
[1735455896888,3.0283,197.3,197.23,7.92188359]
[1735455897089,10.95018359,197.3,197.23,7.92188359]
[1735455897692,2.5392,197.26,197.23,7.92188359]
[1735455897888,2.5392,197.26,197.21,2.5397]
[1735455898096,10.95018359,197.3,197.23,7.92188359]
[1735455899092,2.5395,197.23,197.21,7.92188359]
[1735455900190,7.92188359,197.28,197.17,3.42]
[1735455900391,3.42,197.27,197.17,7.92188359]
[1735455900591,7.92188359,197.24,197.17,7.92188359]
[1735455900897,2.5398,197.21,197.17,10.46218359]
[1735455901396,2.5398,197.21,197.19,7.92188359]
[1735455902698,3.42,197.27,197.19,7.92188359]
[1735455902900,2.5395,197.24,197.21,7.92188359]
[1735455904307,3.42,197.27,197.21,7.92188359]
[1735455904505,2.5395,197.23,197.21,7.92188359]
[1735455904998,3.42,197.27,197.13,3.42]
[1735455905199,11.34188359,197.27,197.13,3.42]
[1735455905404,7.92188359,197.25,197.08,6.93217393]
[1735455905604,7.92188359,197.25,197.18,7.92188359]
[1735455906507,2.5401,197.19,197.18,7.92188359]
[1735455907801,7.92188359,197.25,197.1,3.3]
[1735455908007,2.5401,197.18,197.16,7.92188359]
[1735455908202,7.92188359,197.25,197.16,7.92188359]
[1735455908602,7.92188359,197.23,197.08,4.5451]
[1735455908801,3.42,197.27,197.13,7.92188359]
[1735455908802,3.0322,197.22,197.13,7.92188359]
[1735455909007,3.3,197.21,197.15,7.92188359]
[1735455909704,2.5403,197.17,197.16,7.92188359]
[1735455910109,3.3,197.21,197.16,7.92188359]
[1735455910310,2.5399,197.2,197.16,7.92188359]
[1735455910511,3.0322,197.22,197.18,7.92188359]
[1735455910807,1.5173,197.22,197.18,7.92188359]
[1735455911402,2.5398,197.21,197.18,7.92188359]
[1735455912207,2.5395,197.23,197.18,7.92188359]
[1735455912408,1.572,197.27,197.18,7.92188359]
[1735455912609,1.572,197.27,197.2,7.92188359]
[1735455913410,2.5393,197.25,197.2,10.46168359]
[1735455913903,1.572,197.27,197.2,7.92188359]
[1735455914303,9.49388359,197.27,197.13,3.3]
[1735455914502,9.49388359,197.27,197.19,7.92188359]
[1735455914713,3.3,197.26,197.19,7.92188359]
[1735455915213,2.5396,197.23,197.19,7.92188359]
[1735455915510,3.3,197.26,197.19,7.92188359]
[1735455915913,2.5394,197.24,197.19,10.46178359]
[1735455916310,3.3,197.26,197.19,7.92188359]
[1735455916505,1.572,197.27,197.19,7.92188359]
[1735455916910,1.572,197.27,197.13,3.3]
[1735455917104,9.49388359,197.27,197.19,7.92188359]
[1735455917412,2.5393,197.25,197.19,7.92188359]
[1735455917613,9.49388359,197.27,197.19,7.92188359]
[1735455918109,9.49388359,197.27,197.13,3.3]
[1735455918316,9.49388359,197.27,197.19,7.92188359]
[1735455918614,2.5396,197.23,197.19,10.46188359]
[1735455919115,9.49388359,197.27,197.19,10.46188359]
[1735455920111,9.49388359,197.27,197.19,7.92188359]
[1735455920311,2.5398,197.22,197.19,7.92188359]
[1735455921216,2.5393,197.25,197.19,7.92188359]
[1735455921416,9.49388359,197.27,197.19,7.92188359]
[1735455922223,2.5399,197.21,197.19,7.92188359]
[1735455922615,2.54,197.2,197.16,2.5404]
[1735455922818,7.92188359,197.23,197.16,7.92188359]
[1735455923022,7.92188359,197.21,197.12,6.93217393]
[1735455923215,3.3,197.2,197.12,14.85405752]
[1735455923416,3.3,197.2,197.12,6.93217393]
[1735455923612,4.8781,197.2,197.12,14.85405752]
[1735455924018,4.8781,197.2,197.12,7.92188359]
[1735455924420,7.92188359,197.17,197.07,6.93217393]
[1735455924620,7.92188359,197.17,197.08,7.92188359]
[1735455924817,2.5412,197.1,197.08,7.92188359]
[1735455925420,2.5412,197.1,197.05,28.04705862]
[1735455925421,3.3,197.13,197.05,18.39085862]
[1735455925620,7.92188359,197.06,197.05,7.82825862]
[1735455925822,11.22188359,197.06,197.04,55.28951378]
[1735455926223,11.22188359,197.06,197.02,82.93427068]
[1735455926423,7.92188359,197.03,196.94,7.92188359]
[1735455926723,7.92188359,197.01,196.94,7.92188359]
[1735455927324,3.3,197.03,196.96,7.92188359]
[1735455927520,2.542,197.04,196.98,7.92188359]
[1735455928322,2.5423,197.02,196.94,14.9338714]
[1735455928527,15.6906714,197.08,196.94,14.9338714]
[1735455929216,15.6906714,197.08,196.94,12.3906714]
[1735455929422,12.3906714,197.05,196.94,12.3906714]
[1735455930017,2.5426,196.99,196.94,12.3906714]
[1735455930217,2.5426,196.99,196.93,2.5433]
[1735455930921,2.5429,196.97,196.92,2.5435]
[1735455931425,15.7106714,197.02,196.91,12.3906714]
[1735455931625,15.7106714,197.02,196.93,2.5434]
[1735455931825,15.7106714,197.02,196.91,12.3906714]
[1735455932525,2.5429,196.97,196.91,12.3906714]
[1735455933430,2.5429,196.97,196.91,14.9342714]
[1735455934330,15.7106714,197.02,196.91,14.9342714]
[1735455934528,2.543,196.96,196.91,2.5436]
[1735455939129,15.7106714,197.02,196.89,15.4802714]
[1735455939435,2.5428,196.98,196.92,2.5434]
[1735455939631,2.5428,196.98,196.89,15.4802714]
[1735455939831,2.5428,196.98,196.91,2.5435]
[1735455940032,2.5428,196.98,196.89,15.4802714]
[1735455940634,2.5428,196.98,196.92,2.5434]
[1735455940937,2.5428,196.98,196.89,15.4802714]
[1735455941938,2.5428,196.98,196.93,2.5433]
[1735455944838,5.9426,197.0,196.89,15.4802714]
[1735455945740,3.4,197.0,196.89,15.4802714]
[1735455945941,2.5423,197.02,196.92,12.3906714]
[1735455946144,3.4,197.04,196.92,12.3906714]
[1735455946342,2.5421,197.03,196.92,12.3906714]
[1735455946538,3.4,197.04,196.95,12.3906714]
[1735455946738,3.4,197.04,196.96,1.4642]
[1735455947140,5.942,197.04,196.99,2.5425]
[1735455947538,3.4,197.07,196.97,1.6041]
[1735455947945,12.3906714,197.09,196.98,12.3906714]
[1735455948143,15.7906714,197.09,196.98,13.9374714]
[1735455949042,2.5417,197.07,197.02,2.5421]
[1735455949439,2.5417,197.07,196.98,13.9374714]
[1735455949640,2.5417,197.07,197.03,2.5421]
[1735455950445,10.46905339,197.07,197.03,2.5421]
[1735455953848,1.01455892,197.13,197.01,7.92735339]
[1735455954147,10.46875339,197.09,197.01,7.92735339]
[1735455954641,10.46875339,197.09,197.04,2.5419]
[1735455954847,7.92735339,197.09,197.01,7.92735339]
[1735455955047,2.5416,197.07,197.01,7.92735339]
[1735455956037,7.92735339,197.1,197.03,7.92735339]
[1735455956437,1.01455892,197.13,197.05,7.92735339]
[1735455956644,8.94191231,197.13,197.05,7.92735339]
[1735455958041,2.5414,197.11,197.07,2.5417]
[1735455958246,8.94191231,197.13,197.07,2.5417]
[1735455958446,21.14076375,197.28,197.09,7.92735339]
[1735455958643,21.14076375,197.28,197.12,2.5412]
[1735455958644,2.5408,197.16,197.12,2.5412]
[1735455958843,2.5408,197.16,197.09,7.92735339]
[1735455959043,7.92735339,197.17,197.09,7.92735339]
[1735455960041,2.541,197.14,197.1,2.5414]
[1735455960248,7.92735339,197.17,197.09,7.92735339]
[1735455960739,2.5407,197.16,197.09,10.46885339]
[1735455960948,7.92735339,197.16,197.09,10.46885339]
[1735455962044,2.5412,197.12,197.09,7.92735339]
[1735455962443,3.4,197.19,197.09,7.92735339]
[1735455962947,7.92735339,197.18,197.09,7.92735339]
[1735455963947,2.5405,197.17,197.12,2.5411]
[1735455965341,2.5407,197.16,197.12,2.5411]
[1735455968952,2.5408,197.15,197.12,2.5411]
[1735455969152,7.92735339,197.16,197.09,10.46885339]
[1735455969348,7.92735339,197.16,197.09,7.92735339]
[1735455969851,2.5412,197.12,197.09,7.92735339]
[1735455970243,7.92735339,197.16,197.09,7.92735339]
[1735455971053,2.5412,197.12,197.09,10.46885339]
[1735455972552,3.34,197.19,197.11,2.5412]
[1735455972854,3.34,197.19,197.06,1.5756]
[1735455973051,2.5412,197.13,197.11,7.92735339]
[1735455973251,7.92735339,197.16,197.09,7.92735339]
[1735455974152,2.5413,197.12,197.09,7.92735339]
[1735455976853,2.5414,197.1,197.06,1.5756]
[1735455977157,3.34,197.13,197.07,7.92735339]
[1735455978156,3.34,197.13,197.05,1.4668]
[1735455978358,3.34,197.13,197.06,7.92735339]
[1735455979151,2.5413,197.11,197.07,2.5417]
[1735455979356,3.34,197.13,197.08,7.92735339]
[1735455979561,26.22046375,197.23,197.08,7.92735339]
[1735455979861,7.92735339,197.16,197.09,2.5415]
[1735455980154,3.34,197.16,197.1,7.92735339]
[1735455980759,2.5411,197.13,197.1,7.92735339]
[1735455981255,3.34,197.16,197.1,7.92735339]
[1735455981559,7.92735339,197.19,197.12,7.92735339]
[1735455982255,2.5404,197.18,197.14,2.5408]
[1735455982560,2.5404,197.18,197.12,7.92735339]
[1735455982954,2.5404,197.18,197.05,4.8068]
[1735455983160,2.5408,197.15,197.11,7.92735339]
[1735455985464,2.5408,197.15,197.11,10.46865339]
[1735455987666,2.5405,197.17,197.13,7.92735339]
[1735455987861,7.92735339,197.2,197.13,7.92735339]
[1735455988167,7.92735339,197.19,197.13,7.92735339]
[1735455989565,2.5406,197.17,197.13,10.46835339]
[1735455989964,7.92735339,197.19,197.11,7.92735339]
[1735455990166,2.5408,197.15,197.11,10.46855339]
[1735455991471,2.541,197.14,197.1,2.5414]
[1735455992374,2.5411,197.13,197.08,2.5416]
[1735455992673,11.26735339,197.16,197.09,7.92735339]
[1735455993272,2.5409,197.15,197.1,2.5413]
[1735455993573,11.26735339,197.16,197.1,2.5413]
[1735455994569,2.5409,197.14,197.1,2.5413]
[1735455995273,2.5407,197.16,197.12,2.5411]
[1735455995771,7.92735339,197.18,197.12,2.5411]
[1735455995966,3.24,197.19,197.12,2.5411]
[1735455996274,7.92735339,197.18,197.12,2.5411]
[1735455996471,2.5408,197.15,197.11,7.92735339]
[1735455996873,7.92735339,197.18,197.11,7.92735339]
[1735455997069,7.92735339,197.16,197.1,2.5413]
[1735455997975,2.5409,197.15,197.1,2.5413]
[1735456000276,2.5409,197.15,197.11,2.5413]
[1735456001476,2.5409,197.14,197.11,2.5413]
[1735456001981,2.5409,197.14,197.1,10.46875339]
[1735456002881,7.92735339,197.17,197.1,10.46875339]
[1735456002882,7.63208854,197.23,197.1,7.92735339]
[1735456003077,7.92735339,197.18,197.12,2.5411]
[1735456004478,2.5408,197.15,197.12,2.5411]
[1735456004886,2.5408,197.15,197.11,2.5413]
[1735456005078,2.5408,197.15,197.12,7.92735339]
[1735456005475,3.24,197.22,197.12,7.92735339]
[1735456005780,7.92735339,197.19,197.12,7.92735339]
[1735456006487,2.5407,197.16,197.13,2.541]
[1735456007583,2.5404,197.18,197.14,10.46825339]
[1735456008180,7.92735339,197.22,197.15,2.5407]
[1735456008387,11.16735339,197.22,197.15,2.5407]
[1735456009282,2.5404,197.19,197.15,2.5407]
[1735456010689,7.92735339,197.21,197.1,1.5698]
[1735456010891,2.5404,197.18,197.14,10.46825339]
[1735456011189,2.5404,197.18,197.14,7.92735339]
[1735456011387,7.92735339,197.21,197.16,2.5406]
[1735456011589,7.92735339,197.22,197.15,3.0811]
[1735456012492,2.5401,197.2,197.16,2.5406]
[1735456012891,2.5401,197.2,197.16,10.46795339]
[1735456015491,1.01404451,197.23,197.15,3.0811]
[1735456015697,1.01404451,197.23,197.2,10.46745339]
[1735456015994,1.01404451,197.23,197.2,7.92735339]
[1735456016891,2.5398,197.23,197.2,7.92735339]
[1735456017092,7.92735339,197.25,197.15,6.3211]
[1735456017300,7.92735339,197.21,197.15,3.0811]
[1735456017499,2.5405,197.17,197.15,3.0811]
[1735456018589,2.5407,197.16,197.15,3.0811]
[1735456018896,3.24,197.26,197.15,3.0811]
[1735456019097,7.92735339,197.24,197.17,7.92735339]
[1735456019792,3.24,197.26,197.19,7.92735339]
[1735456019992,11.16735339,197.26,197.19,7.92735339]
[1735456021200,2.54,197.22,197.19,7.92735339]
[1735456021500,3.24,197.26,197.19,7.92735339]
[1735456021801,7.92735339,197.25,197.19,7.92735339]
[1735456022500,3.24,197.26,197.19,7.92735339]
[1735456022698,7.92735339,197.27,197.19,7.92735339]
[1735456022994,11.16735339,197.27,197.19,7.92735339]
[1735456023194,1.39987247,197.3,197.19,11.16735339]
[1735456023499,21.14076375,197.32,197.28,7.92735339]
[1735456023693,21.14076375,197.33,197.28,7.92735339]
[1735456024799,2.5386,197.32,197.28,7.92735339]
[1735456025395,2.5388,197.31,197.28,7.92735339]
[1735456025696,2.5388,197.31,197.26,10.46675339]
[1735456026596,2.5388,197.31,197.27,2.5392]
[1735456026597,2.5387,197.31,197.27,2.5392]
[1735456027191,2.5378,197.39,197.34,2.5383]
[1735456027491,7.92735339,197.35,197.27,9.48105339]
[1735456028396,2.5384,197.34,197.28,2.5391]
[1735456028602,3.24,197.41,197.28,2.5391]
[1735456028801,7.92735339,197.34,197.27,9.48105339]
[1735456029292,2.5386,197.32,197.27,9.48105339]
[1735456029700,18.04719678,197.47,197.27,9.48105339]
[1735456029701,0.82392722,197.4,197.27,9.48105339]
[1735456029898,7.92735339,197.36,197.29,2.539]
[1735456030898,10.46555339,197.36,197.27,11.08605339]
[1735456031204,7.92735339,197.36,197.28,7.92735339]
[1735456031903,2.5382,197.35,197.29,2.5389]
[1735456032098,7.92735339,197.36,197.28,7.92735339]
[1735456032902,7.92735339,197.38,197.28,7.92735339]
[1735456033101,2.5382,197.35,197.28,7.92735339]
[1735456033301,2.5382,197.35,197.3,7.92735339]
[1735456033802,2.5383,197.35,197.3,10.46615339]
[1735456034007,7.92735339,197.37,197.28,7.92735339]
[1735456034209,7.92735339,197.37,197.27,3.1587]
[1735456034508,7.92735339,197.35,197.28,7.92735339]
[1735456035206,1.5929,197.46,197.28,7.92735339]
[1735456035503,7.92735339,197.37,197.28,7.92735339]
[1735456035708,3.24,197.39,197.31,2.5387]
[1735456036111,7.92735339,197.38,197.31,2.5387]
[1735456036405,3.24,197.39,197.3,7.92735339]
[1735456036605,2.538,197.37,197.32,2.5386]
[1735456037209,7.92735339,197.38,197.3,7.92735339]
[1735456037507,3.24,197.41,197.3,7.92735339]
[1735456037708,7.92735339,197.39,197.3,7.92735339]
[1735456038305,2.5379,197.38,197.33,2.5384]
[1735456038611,7.92735339,197.39,197.33,2.5384]
[1735456038909,7.92735339,197.39,197.3,7.92735339]
[1735456039109,2.538,197.37,197.32,2.5386]
[1735456039313,7.92735339,197.39,197.3,7.92735339]
[1735456039506,7.92735339,197.37,197.27,3.1587]
[1735456039707,2.5381,197.36,197.31,2.5386]
[1735456040104,7.92735339,197.38,197.3,7.92735339]
[1735456040408,2.5378,197.38,197.34,2.5383]
[1735456041203,2.5378,197.38,197.33,2.5384]
[1735456041804,2.5381,197.37,197.31,2.5386]
[1735456042109,2.5381,197.37,197.3,7.92735339]
[1735456042512,7.92735339,197.39,197.3,7.92735339]
[1735456042708,2.5381,197.36,197.3,7.92735339]
[1735456042909,7.92735339,197.37,197.3,7.92735339]
[1735456043209,10.46535339,197.37,197.31,2.5386]
[1735456043606,10.46535339,197.37,197.32,2.5386]
[1735456046306,2.5385,197.33,197.28,2.5391]
[1735456046515,7.92735339,197.35,197.26,1.5218]